[Event "Live Chess"]
[Site "Chess.com"]
[Date "2023.05.21"]
[Round "-"]
[White "BJAW87"]
[Black "Ferrarifan27"]
[Result "0-1"]
[WhiteElo "1438"]
[BlackElo "2105"]
[TimeControl "300"]
[EndTime "3:15:05 PDT"]
[Termination "Ferrarifan27 won by resignation"]

1. e4 {[%clk 0:04:58.5]} 1... e5 {[%clk 0:04:58.6]} 2. Nc3 {[%clk 0:04:57.3]}
2... Nc6 {[%clk 0:04:57.8]} 3. f4 {[%clk 0:04:56]} 3... d6 {[%clk 0:04:51]} 4.
fxe5 {[%clk 0:04:55.1]} 4... dxe5 {[%clk 0:04:50.2]} 5. Nf3 {[%clk 0:04:54.4]}
5... Nf6 {[%clk 0:04:48.1]} 6. Bc4 {[%clk 0:04:48.8]} 6... Bc5 {[%clk
0:04:45.7]} 7. Nd5 {[%clk 0:04:39.8]} 7... Ng4 {[%clk 0:04:39.8]} 8. Qe2 {[%clk
0:03:32.2]} 8... Bf2+ {[%clk 0:04:26.1]} 9. Kd1 {[%clk 0:03:22.8]} 9... Bb6
{[%clk 0:04:12.5]} 10. Rf1 {[%clk 0:03:17.2]} 10... O-O {[%clk 0:04:09]} 11. d3
{[%clk 0:03:11.5]} 11... Be6 {[%clk 0:03:58.9]} 12. h3 {[%clk 0:03:03.8]} 12...
Nf6 {[%clk 0:03:40.3]} 13. Bg5 {[%clk 0:02:53.9]} 13... Bxd5 {[%clk 0:03:37.9]}
14. Bxd5 {[%clk 0:02:51.4]} 14... h6 {[%clk 0:03:26.3]} 15. Bh4 {[%clk
0:02:49.7]} 15... g5 {[%clk 0:03:22.3]} 16. Nxg5 {[%clk 0:02:47]} 16... Nxd5
{[%clk 0:03:18]} 17. Ne6 {[%clk 0:01:58.4]} 17... Qxh4 {[%clk 0:03:07.3]} 18.
Nxf8 {[%clk 0:01:55.3]} 18... Ne3+ {[%clk 0:03:02.1]} 19. Kd2 {[%clk 0:01:49.1]}
19... Nxf1+ {[%clk 0:02:57.8]} 20. Rxf1 {[%clk 0:01:49]} 20... Rxf8 {[%clk
0:02:54.9]} 21. Rf5 {[%clk 0:01:30.4]} 21... Nd4 {[%clk 0:02:51.8]} 22. Qf2
{[%clk 0:01:08.1]} 22... Nxf5 {[%clk 0:02:47.3]} 23. Qxf5 {[%clk 0:01:03.4]}
23... Qf2+ {[%clk 0:02:44.7]} 24. Kc3 {[%clk 0:01:01]} 24... Qxf5 {[%clk
0:02:43.3]} 25. exf5 {[%clk 0:00:59.8]} 25... Bd4+ {[%clk 0:02:42.4]} 26. Kb3
{[%clk 0:00:58.7]} 26... c6 {[%clk 0:02:41.6]} 27. c3 {[%clk 0:00:57.9]} 27...
Be3 {[%clk 0:02:39.5]} 28. Kc4 {[%clk 0:00:56.5]} 28... Rd8 {[%clk 0:02:38.3]}
0-1

[Event "Live Chess"]
[Site "Chess.com"]
[Date "2023.05.21"]
[Round "-"]
[White "wot-not"]
[Black "peter-785"]
[Result "1-0"]
[WhiteElo "1542"]
[BlackElo "1187"]
[TimeControl "300"]
[EndTime "3:15:50 PDT"]
[Termination "wot-not won on time"]

1. e4 {[%clk 0:04:56.6]} 1... c5 {[%clk 0:04:59.2]} 2. f4 {[%clk 0:04:55.5]}
2... d6 {[%clk 0:04:58.7]} 3. Nf3 {[%clk 0:04:55]} 3... e6 {[%clk 0:04:58.2]} 4.
d4 {[%clk 0:04:54.5]} 4... cxd4 {[%clk 0:04:56.5]} 5. Bd3 {[%clk 0:04:53.7]}
5... Nf6 {[%clk 0:04:40.8]} 6. O-O {[%clk 0:04:52.8]} 6... Nc6 {[%clk
0:04:33.6]} 7. Nbd2 {[%clk 0:04:52]} 7... a6 {[%clk 0:04:31.4]} 8. Nb3 {[%clk
0:04:51.2]} 8... b5 {[%clk 0:04:26.7]} 9. Bd2 {[%clk 0:04:50.2]} 9... Be7 {[%clk
0:04:24.3]} 10. Be1 {[%clk 0:04:48.9]} 10... O-O {[%clk 0:04:23.8]} 11. Nbxd4
{[%clk 0:04:39.2]} 11... Nxd4 {[%clk 0:04:16.3]} 12. Nxd4 {[%clk 0:04:37.3]}
12... Bb7 {[%clk 0:04:12.3]} 13. Qe2 {[%clk 0:04:13.2]} 13... Rc8 {[%clk
0:03:53.6]} 14. Bh4 {[%clk 0:04:03.9]} 14... Qb6 {[%clk 0:03:51.5]} 15. c3
{[%clk 0:04:01.9]} 15... e5 {[%clk 0:03:49]} 16. fxe5 {[%clk 0:03:59.6]} 16...
dxe5 {[%clk 0:03:47.6]} 17. Kh1 {[%clk 0:03:51.2]} 17... exd4 {[%clk 0:03:44.8]}
18. e5 {[%clk 0:03:50.6]} 18... Nd5 {[%clk 0:03:36]} 19. Qh5 {[%clk 0:03:38.6]}
19... g6 {[%clk 0:03:28]} 20. Qh6 {[%clk 0:03:18]} 20... Bxh4 {[%clk 0:03:23.6]}
21. Qxh4 {[%clk 0:03:16.5]} 21... dxc3 {[%clk 0:02:49.3]} 22. bxc3 {[%clk
0:03:09.1]} 22... Qd8 {[%clk 0:02:23.8]} 23. Qg3 {[%clk 0:02:24.4]} 23... Ne7
{[%clk 0:02:00.2]} 24. Rac1 {[%clk 0:02:14.2]} 24... Rc7 {[%clk 0:01:19.2]} 25.
Rfd1 {[%clk 0:02:07.8]} 25... Qc8 {[%clk 0:01:17]} 26. Be2 {[%clk 0:01:52.5]}
26... Nf5 {[%clk 0:01:11.9]} 27. Qg5 {[%clk 0:01:41.4]} 27... Qe6 {[%clk
0:01:09.1]} 28. Bg4 {[%clk 0:01:38.7]} 28... Qxe5 {[%clk 0:00:55.6]} 29. Re1
{[%clk 0:01:31.1]} 29... Qg7 {[%clk 0:00:53.2]} 30. Bxf5 {[%clk 0:01:25.6]}
30... gxf5 {[%clk 0:00:51.2]} 31. Qd2 {[%clk 0:01:15.1]} 31... Rfc8 {[%clk
0:00:41]} 32. Re3 {[%clk 0:01:12.9]} 32... Be4 {[%clk 0:00:38.2]} 33. Rg3 {[%clk
0:01:11]} 33... f6 {[%clk 0:00:32.6]} 34. Rxg7+ {[%clk 0:01:09.5]} 34... Rxg7
{[%clk 0:00:32.3]} 35. Rg1 {[%clk 0:00:55.1]} 35... h6 {[%clk 0:00:25.5]} 36.
Qxh6 {[%clk 0:00:49.8]} 36... Rxc3 {[%clk 0:00:19.5]} 37. Qxf6 {[%clk
0:00:47.4]} 37... Rc6 {[%clk 0:00:16.2]} 38. Qd8+ {[%clk 0:00:45]} 38... Kh7
{[%clk 0:00:13.6]} 39. Qh4+ {[%clk 0:00:40.6]} 39... Rh6 {[%clk 0:00:12.5]} 40.
Qe1 {[%clk 0:00:34.9]} 40... Re6 {[%clk 0:00:10.6]} 41. Qa5 {[%clk 0:00:30]}
41... Rf6 {[%clk 0:00:07.4]} 42. h3 {[%clk 0:00:26.2]} 42... Re6 {[%clk
0:00:06.3]} 43. Qd8 {[%clk 0:00:22.6]} 43... Rc6 {[%clk 0:00:03.7]} 44. Qh4+
{[%clk 0:00:21.2]} 44... Rh6 {[%clk 0:00:01.6]} 45. Qf4 {[%clk 0:00:18.3]} 45...
Rf6 {[%clk 0:00:00.8]} 46. Qh4+ {[%clk 0:00:16.3]} 46... Rh6 {[%clk 0:00:00.4]}
47. Qd8 {[%clk 0:00:14.4]} 1-0

[Event "Live Chess"]
[Site "Chess.com"]
[Date "2023.05.21"]
[Round "-"]
[White "SupremeTactician"]
[Black "Brooms1989"]
[Result "1-0"]
[WhiteElo "2225"]
[BlackElo "1124"]
[TimeControl "300"]
[EndTime "3:15:57 PDT"]
[Termination "SupremeTactician won by resignation"]

1. e4 {[%clk 0:04:59.1]} 1... e5 {[%clk 0:04:56.4]} 2. Nf3 {[%clk 0:04:55.7]}
2... Nc6 {[%clk 0:04:55]} 3. Nc3 {[%clk 0:04:55.6]} 3... Nf6 {[%clk 0:04:53.1]}
4. Bb5 {[%clk 0:04:55.5]} 4... d6 {[%clk 0:04:49.9]} 5. Bxc6+ {[%clk 0:04:54.9]}
5... bxc6 {[%clk 0:04:48.8]} 6. O-O {[%clk 0:04:54.8]} 6... Ba6 {[%clk 0:04:47]}
7. Re1 {[%clk 0:04:53.8]} 7... Be7 {[%clk 0:04:45.5]} 8. d4 {[%clk 0:04:53.7]}
8... O-O {[%clk 0:04:39.6]} 9. dxe5 {[%clk 0:04:52.8]} 9... dxe5 {[%clk
0:04:39]} 10. Qxd8 {[%clk 0:04:51.9]} 10... Raxd8 {[%clk 0:04:37]} 11. Nxe5
{[%clk 0:04:51.8]} 11... Bb7 {[%clk 0:04:33.9]} 12. Bg5 {[%clk 0:04:49.8]} 12...
h6 {[%clk 0:04:31.6]} 13. Bh4 {[%clk 0:04:48.3]} 13... Rd2 {[%clk 0:04:29.9]}
14. Re2 {[%clk 0:04:46.4]} 14... Rfd8 {[%clk 0:04:21.5]} 15. Rae1 {[%clk
0:04:42.8]} 15... Bb4 {[%clk 0:04:11.8]} 16. Bxf6 {[%clk 0:04:35.2]} 16... gxf6
{[%clk 0:03:51.4]} 17. Nd3 {[%clk 0:04:33.6]} 17... Rxe2 {[%clk 0:03:46.2]} 18.
Rxe2 {[%clk 0:04:33.5]} 18... Bxc3 {[%clk 0:03:45]} 19. bxc3 {[%clk 0:04:33.4]}
19... Ba6 {[%clk 0:03:43]} 20. Re3 {[%clk 0:04:32.6]} 20... Re8 {[%clk
0:03:37.9]} 21. g3 {[%clk 0:04:30.4]} 21... f5 {[%clk 0:03:36.2]} 22. exf5
{[%clk 0:04:28.7]} 22... Rxe3 {[%clk 0:03:35]} 23. fxe3 {[%clk 0:04:28.6]} 23...
Bxd3 {[%clk 0:03:33.8]} 24. cxd3 {[%clk 0:04:28.5]} 24... Kg7 {[%clk 0:03:33.1]}
25. e4 {[%clk 0:04:28.3]} 25... Kf6 {[%clk 0:03:32.4]} 26. Kf2 {[%clk
0:04:28.2]} 26... Ke5 {[%clk 0:03:31.7]} 27. Ke3 {[%clk 0:04:28.1]} 27... f6
{[%clk 0:03:29.5]} 28. d4+ {[%clk 0:04:28]} 28... Kd6 {[%clk 0:03:28]} 29. Kf4
{[%clk 0:04:27.4]} 29... Ke7 {[%clk 0:03:26.9]} 30. e5 {[%clk 0:04:27.3]} 30...
fxe5+ {[%clk 0:03:25.7]} 31. dxe5 {[%clk 0:04:27.2]} 31... Kf7 {[%clk
0:03:24.9]} 32. g4 {[%clk 0:04:26.4]} 1-0

[Event "Live Chess"]
[Site "Chess.com"]
[Date "2023.05.21"]
[Round "-"]
[White "Ian-Morley"]
[Black "McSlash1"]
[Result "0-1"]
[WhiteElo "1060"]
[BlackElo "2009"]
[TimeControl "300"]
[EndTime "3:16:04 PDT"]
[Termination "McSlash1 won by checkmate"]

1. e4 {[%clk 0:04:58.4]} 1... c5 {[%clk 0:04:59.5]} 2. Nf3 {[%clk 0:04:54.6]}
2... d6 {[%clk 0:04:58.9]} 3. Bb5+ {[%clk 0:04:52.8]} 3... Bd7 {[%clk
0:04:57.5]} 4. Bxd7+ {[%clk 0:04:52.1]} 4... Qxd7 {[%clk 0:04:57.4]} 5. O-O
{[%clk 0:04:50.8]} 5... Nc6 {[%clk 0:04:56]} 6. Re1 {[%clk 0:04:49.1]} 6... g6
{[%clk 0:04:55.5]} 7. c3 {[%clk 0:04:48.6]} 7... Bg7 {[%clk 0:04:54.9]} 8. d4
{[%clk 0:04:48.1]} 8... cxd4 {[%clk 0:04:54.6]} 9. cxd4 {[%clk 0:04:47.6]} 9...
Nf6 {[%clk 0:04:54.3]} 10. e5 {[%clk 0:04:46.6]} 10... dxe5 {[%clk 0:04:53.1]}
11. Nxe5 {[%clk 0:04:45.9]} 11... Nxe5 {[%clk 0:04:52]} 12. dxe5 {[%clk
0:04:45.4]} 12... Qxd1 {[%clk 0:04:51.8]} 13. Rxd1 {[%clk 0:04:44.7]} 13... Ng4
{[%clk 0:04:49.1]} 14. f4 {[%clk 0:04:42.1]} 14... O-O {[%clk 0:04:48.7]} 15. h3
{[%clk 0:04:40.1]} 15... Nh6 {[%clk 0:04:47.6]} 16. g4 {[%clk 0:04:38.2]} 16...
Rfd8 {[%clk 0:04:44.3]} 17. Rxd8+ {[%clk 0:04:34.7]} 17... Rxd8 {[%clk
0:04:44.2]} 18. Kg2 {[%clk 0:04:32]} 18... f6 {[%clk 0:04:37.4]} 19. Nc3 {[%clk
0:04:26.9]} 19... fxe5 {[%clk 0:04:36.2]} 20. fxe5 {[%clk 0:04:26.1]} 20... Bxe5
{[%clk 0:04:36.1]} 21. Bxh6 {[%clk 0:04:24.3]} 21... b5 {[%clk 0:04:24.5]} 22.
Ne4 {[%clk 0:04:10.4]} 22... Rd4 {[%clk 0:04:19.5]} 23. Kf3 {[%clk 0:04:03.2]}
23... Rd3+ {[%clk 0:04:17.8]} 24. Ke2 {[%clk 0:04:01.2]} 24... Rxh3 {[%clk
0:04:15.8]} 25. g5 {[%clk 0:03:58.5]} 25... Rh2+ {[%clk 0:04:11.6]} 26. Kd3
{[%clk 0:03:56.7]} 26... Rxb2 {[%clk 0:04:11]} 27. a4 {[%clk 0:03:54.4]} 27...
Rb3+ {[%clk 0:04:06.2]} 28. Kc2 {[%clk 0:03:53.4]} 28... Rb4 {[%clk 0:03:56.8]}
29. Re1 {[%clk 0:03:38.1]} 29... bxa4 {[%clk 0:03:55]} 30. Nc3 {[%clk 0:03:25]}
30... Bd6 {[%clk 0:03:50]} 31. Nd5 {[%clk 0:03:21.2]} 31... Rb7 {[%clk
0:03:42.2]} 32. Rf1 {[%clk 0:03:16.6]} 32... Rb8 {[%clk 0:03:34.9]} 33. Nc3
{[%clk 0:03:03.3]} 33... a3 {[%clk 0:03:32.9]} 34. Na2 {[%clk 0:03:02.1]} 34...
e5 {[%clk 0:03:27.1]} 35. Rb1 {[%clk 0:02:44.7]} 35... Rc8+ {[%clk 0:03:22.2]}
36. Kb3 {[%clk 0:02:41.2]} 36... e4 {[%clk 0:03:19]} 37. Rd1 {[%clk 0:02:37]}
37... Be7 {[%clk 0:03:15.6]} 38. Rd7 {[%clk 0:02:35.2]} 38... Bc5 {[%clk
0:03:12.4]} 39. Rg7+ {[%clk 0:02:32.9]} 39... Kh8 {[%clk 0:03:11.8]} 40. Nc3
{[%clk 0:02:23.8]} 40... e3 {[%clk 0:03:09.5]} 41. Ne2 {[%clk 0:02:20.8]} 41...
Rb8+ {[%clk 0:02:59.5]} 42. Ka2 {[%clk 0:02:17.6]} 42... Rb2+ {[%clk 0:02:46.7]}
43. Ka1 {[%clk 0:02:15.2]} 43... Rxe2 {[%clk 0:02:43.1]} 44. Rc7 {[%clk
0:02:13.1]} 44... Bd4+ {[%clk 0:02:36.2]} 45. Kb1 {[%clk 0:02:10.4]} 45... a2+
{[%clk 0:02:35.7]} 46. Kc1 {[%clk 0:02:05.8]} 46... a1=Q# {[%clk 0:02:35.6]} 0-1

[Event "Live Chess"]
[Site "Chess.com"]
[Date "2023.05.21"]
[Round "-"]
[White "Outspanner"]
[Black "sanjesh_ananda"]
[Result "1-0"]
[WhiteElo "1551"]
[BlackElo "1297"]
[TimeControl "300"]
[EndTime "3:16:14 PDT"]
[Termination "Outspanner won by checkmate"]

1. d4 {[%clk 0:04:57.5]} 1... d5 {[%clk 0:04:57.1]} 2. Nc3 {[%clk 0:04:52.4]}
2... Nf6 {[%clk 0:04:51.7]} 3. Bf4 {[%clk 0:04:51.1]} 3... a6 {[%clk 0:04:47.4]}
4. e3 {[%clk 0:04:48.3]} 4... e6 {[%clk 0:04:39.6]} 5. Bd3 {[%clk 0:04:36.6]}
5... Nc6 {[%clk 0:04:25.2]} 6. a3 {[%clk 0:04:32.2]} 6... Bd6 {[%clk 0:04:10]}
7. Bg5 {[%clk 0:03:43.1]} 7... O-O {[%clk 0:04:03.7]} 8. h4 {[%clk 0:03:32.9]}
8... h6 {[%clk 0:03:55.2]} 9. f4 {[%clk 0:02:51.2]} 9... hxg5 {[%clk 0:03:24.5]}
10. hxg5 {[%clk 0:02:50.2]} 10... Ne4 {[%clk 0:03:10]} 11. Qh5 {[%clk
0:02:47.9]} 11... f6 {[%clk 0:03:05]} 12. g6 {[%clk 0:02:45.7]} 12... Re8 {[%clk
0:02:47.1]} 13. Qh8# {[%clk 0:02:41.1]} 1-0

[Event "Live Chess"]
[Site "Chess.com"]
[Date "2023.05.21"]
[Round "-"]
[White "bedsdrout"]
[Black "toxic_rabbit"]
[Result "0-1"]
[WhiteElo "577"]
[BlackElo "1988"]
[TimeControl "300"]
[EndTime "3:16:15 PDT"]
[Termination "toxic_rabbit won on time"]

1. e4 {[%clk 0:04:52.7]} 1... e6 {[%clk 0:04:58.6]} 2. Bc4 {[%clk 0:04:43.3]}
2... d5 {[%clk 0:04:57.1]} 3. Bb3 {[%clk 0:04:40.4]} 3... dxe4 {[%clk
0:04:54.5]} 4. Nc3 {[%clk 0:04:26.4]} 4... Nf6 {[%clk 0:04:52.6]} 5. d3 {[%clk
0:04:11.5]} 5... exd3 {[%clk 0:04:50.6]} 6. Nf3 {[%clk 0:03:23.4]} 6... Be7
{[%clk 0:04:45.5]} 7. Qxd3 {[%clk 0:03:18.9]} 7... Qxd3 {[%clk 0:04:42.6]} 8.
cxd3 {[%clk 0:03:16.2]} 8... Nc6 {[%clk 0:04:42.3]} 9. Ng5 {[%clk 0:03:05.3]}
9... h6 {[%clk 0:04:40.3]} 10. Nf3 {[%clk 0:02:53.3]} 10... O-O {[%clk
0:04:36.9]} 11. d4 {[%clk 0:02:43.5]} 11... Rd8 {[%clk 0:04:33.9]} 12. Bc2
{[%clk 0:02:42.1]} 12... Nxd4 {[%clk 0:04:32.6]} 13. Nxd4 {[%clk 0:02:36]} 13...
Rxd4 {[%clk 0:04:32.5]} 14. Be3 {[%clk 0:02:18.5]} 14... Rd8 {[%clk 0:04:22.9]}
15. Rd1 {[%clk 0:02:16.1]} 15... Rxd1+ {[%clk 0:04:19.5]} 16. Bxd1 {[%clk
0:02:14]} 16... Bd7 {[%clk 0:04:19.4]} 17. Bc2 {[%clk 0:02:07.9]} 17... Bc6
{[%clk 0:04:18.5]} 18. O-O {[%clk 0:02:05.2]} 18... Rd8 {[%clk 0:04:15.7]} 19.
Rd1 {[%clk 0:01:57.8]} 19... Rxd1+ {[%clk 0:04:06.1]} 20. Bxd1 {[%clk
0:01:54.5]} 20... Nd5 {[%clk 0:04:06]} 21. Bd2 {[%clk 0:01:49.9]} 21... Nxc3
{[%clk 0:04:04]} 22. Bxc3 {[%clk 0:01:36.2]} 22... Bf6 {[%clk 0:04:00.6]} 23.
Bc2 {[%clk 0:01:23.9]} 23... Bxc3 {[%clk 0:03:56]} 24. bxc3 {[%clk 0:01:22]}
24... Kf8 {[%clk 0:03:55.3]} 25. a4 {[%clk 0:01:18.2]} 25... Ke7 {[%clk
0:03:45.6]} 26. a5 {[%clk 0:01:15.4]} 26... Kd6 {[%clk 0:03:41.5]} 27. Kf1
{[%clk 0:01:09.7]} 27... Kc5 {[%clk 0:02:47.4]} 28. Bd3 {[%clk 0:01:03.9]} 28...
Bb5 {[%clk 0:02:46.6]} 29. Ke2 {[%clk 0:01:01]} 29... Bxd3+ {[%clk 0:02:45.2]}
30. Kxd3 {[%clk 0:00:59.9]} 30... Kb5 {[%clk 0:02:45.1]} 31. c4+ {[%clk
0:00:57.2]} 31... Kxa5 {[%clk 0:02:44.5]} 32. g4 {[%clk 0:00:55.1]} 32... Kb4
{[%clk 0:02:44.4]} 33. h4 {[%clk 0:00:51.4]} 33... a5 {[%clk 0:02:42.8]} 34. f4
{[%clk 0:00:49.4]} 34... Kb3 {[%clk 0:02:40.8]} 35. Kd2 {[%clk 0:00:45.6]} 35...
Kb2 {[%clk 0:02:39.8]} 36. g5 {[%clk 0:00:42.1]} 36... h5 {[%clk 0:02:37.8]} 37.
f5 {[%clk 0:00:35.7]} 37... exf5 {[%clk 0:02:36.4]} 38. g6 {[%clk 0:00:33.9]}
38... f6 {[%clk 0:02:34.4]} 39. Kd3 {[%clk 0:00:25.6]} 39... a4 {[%clk
0:02:32.6]} 40. c5 {[%clk 0:00:22.6]} 40... c6 {[%clk 0:02:31.6]} 41. Kc4 {[%clk
0:00:20.2]} 41... a3 {[%clk 0:02:31.5]} 42. Kd4 {[%clk 0:00:17.2]} 42... a2
{[%clk 0:02:31.4]} 43. Kc4 {[%clk 0:00:16.3]} 43... a1=Q {[%clk 0:02:31.3]} 44.
Kd4 {[%clk 0:00:15.4]} 44... Qa4+ {[%clk 0:01:49.4]} 45. Kd3 {[%clk 0:00:12.5]}
45... Qe4+ {[%clk 0:01:46]} 46. Kd2 {[%clk 0:00:06.6]} 46... Qd4+ {[%clk
0:01:44.3]} 47. Ke2 {[%clk 0:00:05.7]} 47... Kc3 {[%clk 0:01:41.7]} 48. Kf3
{[%clk 0:00:02.5]} 48... Qe4+ {[%clk 0:01:40.9]} 49. Kf2 {[%clk 0:00:01.4]}
49... Qe3+ {[%clk 0:01:38]} 0-1

[Event "Live Chess"]
[Site "Chess.com"]
[Date "2023.05.21"]
[Round "-"]
[White "LiamBellwood"]
[Black "raminguy"]
[Result "1/2-1/2"]
[WhiteElo "1946"]
[BlackElo "1956"]
[TimeControl "300"]
[EndTime "3:16:32 PDT"]
[Termination "Game drawn - insufficient material"]

1. d4 {[%clk 0:04:59.2]} 1... d5 {[%clk 0:04:58.7]} 2. Nf3 {[%clk 0:04:59]} 2...
Nf6 {[%clk 0:04:57.6]} 3. e3 {[%clk 0:04:58.9]} 3... e6 {[%clk 0:04:57]} 4. Be2
{[%clk 0:04:58.8]} 4... Be7 {[%clk 0:04:56.5]} 5. O-O {[%clk 0:04:58.3]} 5...
O-O {[%clk 0:04:56.2]} 6. b3 {[%clk 0:04:58.2]} 6... c5 {[%clk 0:04:55.2]} 7.
Bb2 {[%clk 0:04:58.1]} 7... cxd4 {[%clk 0:04:54.4]} 8. Nxd4 {[%clk 0:04:57.3]}
8... Nc6 {[%clk 0:04:53.3]} 9. Nd2 {[%clk 0:04:54.5]} 9... Bd6 {[%clk
0:04:51.3]} 10. N2f3 {[%clk 0:04:53.8]} 10... Re8 {[%clk 0:04:47.9]} 11. a3
{[%clk 0:04:50.4]} 11... e5 {[%clk 0:04:46.4]} 12. Nxc6 {[%clk 0:04:49.9]} 12...
bxc6 {[%clk 0:04:45.1]} 13. c4 {[%clk 0:04:49.1]} 13... e4 {[%clk 0:04:38.2]}
14. Nd4 {[%clk 0:04:34.9]} 14... Qc7 {[%clk 0:04:28.2]} 15. h3 {[%clk
0:04:31.1]} 15... a5 {[%clk 0:04:24.3]} 16. cxd5 {[%clk 0:04:29.1]} 16... cxd5
{[%clk 0:04:22.8]} 17. Nb5 {[%clk 0:04:28]} 17... Qe7 {[%clk 0:04:15.7]} 18.
Nxd6 {[%clk 0:04:26.4]} 18... Qxd6 {[%clk 0:04:14.4]} 19. Bxf6 {[%clk
0:04:26.1]} 19... gxf6 {[%clk 0:04:12.9]} 20. Bc4 {[%clk 0:04:19]} 20... Be6
{[%clk 0:04:10.7]} 21. Qd4 {[%clk 0:04:01.8]} 21... Qe5 {[%clk 0:04:02.1]} 22.
Bb5 {[%clk 0:03:50.2]} 22... Reb8 {[%clk 0:03:58]} 23. a4 {[%clk 0:03:39.3]}
23... Qxd4 {[%clk 0:03:56.6]} 24. exd4 {[%clk 0:03:39.2]} 24... f5 {[%clk
0:03:55.6]} 25. Rfc1 {[%clk 0:03:36.9]} 25... f4 {[%clk 0:03:54.5]} 26. h4
{[%clk 0:03:26.6]} 26... Rc8 {[%clk 0:03:51.7]} 27. g3 {[%clk 0:03:11.9]} 27...
f3 {[%clk 0:03:48.7]} 28. Kf1 {[%clk 0:03:10.1]} 28... Kf8 {[%clk 0:03:39.2]}
29. Ke1 {[%clk 0:03:09.5]} 29... Ke7 {[%clk 0:03:38.5]} 30. Kd2 {[%clk 0:03:09]}
30... Kd6 {[%clk 0:03:37.7]} 31. Ke3 {[%clk 0:03:06.4]} 31... f5 {[%clk
0:03:28.2]} 32. Kf4 {[%clk 0:02:59.7]} 32... Rxc1 {[%clk 0:03:25.7]} 33. Rxc1
{[%clk 0:02:57.8]} 33... Rc8 {[%clk 0:03:24.3]} 34. Rxc8 {[%clk 0:02:46.9]}
34... Bxc8 {[%clk 0:03:24.2]} 35. Kg5 {[%clk 0:02:27.6]} 35... Bd7 {[%clk
0:03:20.1]} 36. Bf1 {[%clk 0:02:01.8]} 36... Ke6 {[%clk 0:03:03.2]} 37. Bh3
{[%clk 0:01:38.4]} 37... Kd6 {[%clk 0:03:01.3]} 38. Bf1 {[%clk 0:01:26.4]} 38...
Ke6 {[%clk 0:03:00]} 39. Kh6 {[%clk 0:01:25.7]} 39... Kf6 {[%clk 0:02:58.8]} 40.
Kxh7 {[%clk 0:01:20.9]} 40... f4 {[%clk 0:02:55.6]} 41. gxf4 {[%clk 0:00:59.5]}
41... Bg4 {[%clk 0:02:51.5]} 42. Kh6 {[%clk 0:00:50.7]} 42... Kf5 {[%clk
0:02:49.1]} 43. h5 {[%clk 0:00:49.1]} 43... Kxf4 {[%clk 0:02:46.9]} 44. Kg6
{[%clk 0:00:46]} 44... Bf5+ {[%clk 0:02:45.1]} 45. Kf6 {[%clk 0:00:43.6]} 45...
Bh7 {[%clk 0:02:43.1]} 46. h6 {[%clk 0:00:39.1]} 46... e3 {[%clk 0:02:38.9]} 47.
fxe3+ {[%clk 0:00:38.1]} 47... Kxe3 {[%clk 0:02:38.6]} 48. Ke5 {[%clk
0:00:35.2]} 48... Be4 {[%clk 0:02:35.2]} 49. h7 {[%clk 0:00:31.9]} 49... Bxh7
{[%clk 0:02:33.8]} 50. Kxd5 {[%clk 0:00:31.8]} 50... Bg8+ {[%clk 0:02:31.7]} 51.
Kc5 {[%clk 0:00:26.1]} 51... Bxb3 {[%clk 0:02:31]} 52. d5 {[%clk 0:00:21.2]}
52... Bxa4 {[%clk 0:02:26.2]} 53. d6 {[%clk 0:00:17.9]} 53... f2 {[%clk
0:02:24.3]} 54. Kb6 {[%clk 0:00:13.6]} 54... Kd2 {[%clk 0:02:20.3]} 55. Kxa5
{[%clk 0:00:12.7]} 55... Bd7 {[%clk 0:02:19.1]} 56. Kb6 {[%clk 0:00:10.7]} 56...
Ke1 {[%clk 0:02:18.1]} 57. Bc4 {[%clk 0:00:08.1]} 57... f1=Q {[%clk 0:02:17.1]}
58. Bxf1 {[%clk 0:00:07]} 58... Kxf1 {[%clk 0:02:15.7]} 59. Kc7 {[%clk
0:00:06.9]} 59... Bh3 {[%clk 0:02:14.3]} 60. d7 {[%clk 0:00:06.8]} 60... Bxd7
{[%clk 0:02:13.3]} 1/2-1/2